Cogmind - Beta 14 @@@ ROGUE MODE // 2024.08.10 @ 12:56:02 Player: Loboranto Result: Destroyed by D-53 Grenadier with Mini Grenade Launcher Performance ------------- Evolutions (0) 0 Regions Visited (4) 800 Robots Destroyed (5) 25 Value Destroyed (97) 97 Prototype IDs (23) 460 Alien Tech Used (0) 0 Bonus (488) 488 TOTAL SCORE: 1870 Bonus ------- Follower Combat Kills 188 Aligned with FarCom 300 Cogmind --------- Core Integrity 0/250 Matter 500/500 Energy 100/100 System Corruption 1% Temperature Cool (0) Movement Core (250) Ox4 Location -9/Mines Parts ------- > --- POWER (1) -------- (None) > --- PROPULSION (2) --- (None) > --- UTILITY (2) ------ Medium Storage Unit High-capacity Matter Pod > --- WEAPON (2) ------- (None) > --- INVENTORY (10) --- Improved Heat Sink Sensor Array Modified TNC Targeting Computer Trap Reconfigurator Recalibrator Sensor Drone Bay Beamcaster Signal Generator Peak State ------------ > --- POWER ------------ Light Nuclear Core > --- PROPULSION ------- Carbon-fiber Leg > --- UTILITY ---------- Medium Storage Unit High-capacity Matter Pod > --- WEAPON ----------- Small Laser Latent Energy Streamer > --- INVENTORY -------- Improved Heat Sink Sensor Array Modified TNC Targeting Computer Trap Reconfigurator Recalibrator Sensor Drone Bay Beamcaster Signal Generator [Rating: 23] Favorites ----------- Power Light Nuclear Core Engine Light Ion Engine Power Core Light Nuclear Core Propulsion Carbon-fiber Leg Leg Carbon-fiber Leg Utility High-capacity Matter Pod Storage High-capacity Matter Pod Weapon Small Laser Energy Gun Small Laser Energy Cannon Latent Energy Streamer Build | -11 -10 -10 -10 -9 ------- Run | Yrd Mat Min Exi Min Slots Evolved . | . . . . . Power . | . . . . . Propulsion . | . . . . . Utility . | . . . . . Weapon . | . . . . . Parts Attached 13 | 5 3 4 . 1 Power 2 | 1 . 1 . . Engine 1 | 1 . . . . Core 1 | . . 1 . . Reactor . | . . . . . Propulsion 5 | 2 . 3 . . Treads . | . . . . . Leg 5 | 2 . 3 . . Wheel . | . . . . . Hover . | . . . . . Flight . | . . . . . Utility 3 | 1 2 . . . Device . | . . . . . Storage 3 | 1 2 . . . Processor . | . . . . . Hackware . | . . . . . Protection . | . . . . . Artifact . | . . . . . Weapon 3 | 1 1 . . 1 Energy Gun 2 | 1 1 . . . Energy Cannon 1 | . . . . 1 Ballistic Gun . | . . . . . Ballistic Cannon . | . . . . . Launcher . | . . . . . Special Weapon . | . . . . . Impact Weapon . | . . . . . Slashing Weapon . | . . . . . Piercing Weapon . | . . . . . Special Melee Weapon . | . . . . . Unidentified Prototypes . | . . . . . Parts Lost 6 | . . . . 6 Power 1 | . . . . 1 Propulsion 2 | . . . . 2 Utility . | . . . . . Weapon 3 | . . . . 3 Highest Loss Streak 6 | . . . . 6 To Critical Strikes . | . . . . . Average Slot Usage (%) 99 | . 93 100 100 97 Engine 2 | . 14 3 . . Core 11 | . . 10 14 13 Leg 27 | . 28 28 28 26 Storage 27 | . 22 28 28 28 Energy Gun 27 | . 28 28 28 26 Peak Build Rating 23 | 5 7 15 17 23 Average Rating 14 | 3 6 12 15 17 On Entrance 8 | . 5 7 15 17 Naked Turns . | . . . . . Heaviest Build 30 | 9 19 21 21 30 Greatest Support 30 | 20 20 30 30 30 Greatest Overweight (x) 9 | . . 1 . 9 Average Overweight (x) . | . . . . . Largest Inventory Capacity 10 | 8 10 10 10 10 Average Capacity 9 | 7 8 10 10 10 Most Carried 10 | 4 6 10 10 10 Average Carried 9 | 2 3 9 9 9 Final Capacity 10 | 8 10 10 10 10 Final Carried 10 | 4 6 10 10 9 Class Distribution -------------------- 100% | Mutant Dominant Class ---------------- Mutant | -10/Materials Mutant | -10/Mines Mutant | -10/Exiles Mutant | -9/Mines Resources | -11 -10 -10 -10 -9 ----------- Run | Yrd Mat Min Exi Min Matter Collected 520 | 203 35 282 . . Remotely . | . . . . . Salvage Created 112 | . 52 13 . 47 Parts 9 | . 4 1 . 4 Haulers Intercepted . | . . . . . Recyclers Shooed . | . . . . . Parts Field Recycled . | . . . . . Retrieved Matter . | . . . . . Parts Self-Destructed . | . . . . . Prevented . | . . . . . Kills | -11 -10 -10 -10 -9 ------- Run | Yrd Mat Min Exi Min Combat Hostiles Destroyed 5 | . 3 1 . 1 Guns 5 | . 3 1 . 1 Classes Destroyed 2 | . 1 . . 1 Swarmer 4 | . 3 1 . . Duelist 1 | . . . . 1 Best Kill Streak 2 | . 2 1 . 1 Combat Bots Only 2 | . 2 1 . 1 Max Kills in Single Turn 1 | . 1 1 . 1 Gunslinging . | . . . . . Exploded . | . . . . . Melee . | . . . . . Uniques/NPCs Destroyed . | . . . . . Combat | -11 -10 -10 -10 -9 -------- Run | Yrd Mat Min Exi Min Hostile Shots Fired 43 | . 13 5 . 25 Missed 11 | . 4 1 . 6 Damage Taken 935 | . 70 35 . 830 Core 253 | . 8 17 . 228 Absorbed by Shields . | . . . . . Core Remaining (%) 100 | 100 . . . . Volleys Fired 13 | . 7 2 . 4 Largest 2 | . 2 2 . 2 Hottest 80 | . 80 80 . 80 Shots Fired 25 | . 14 4 . 7 Gun 24 | . 14 4 . 6 Cannon 1 | . . . . 1 Launcher . | . . . . . Special . | . . . . . Kinetic . | . . . . . Thermal 24 | . 14 4 . 6 Explosive . | . . . . . Electromagnetic 1 | . . . . 1 Robot Hit Streak 2 | . 2 1 . 2 Robot Miss Streak 3 | . 2 3 . 2 Penetration Max . | . . . . . Secondary Targets . | . . . . . Shots Hit Robots 8 | . 5 1 . 2 Core Hits 5 | . 3 1 . 1 Critical Kills . | . . . . . Critical Parts Destroyed . | . . . . . Critical Strikes . | . . . . . Melee Attacks . | . . . . . Impact . | . . . . . Slashing . | . . . . . Piercing . | . . . . . Sneak Attacks . | . . . . . Combat Hostiles . | . . . . . Follow-up Attacks . | . . . . . Damage Inflicted 92 | . 57 10 . 25 Guns 87 | . 57 10 . 20 Cannons . | . . . . . Explosions 5 | . . . . 5 Melee . | . . . . . Ramming . | . . . . . Kinetic . | . . . . . Thermal 87 | . 57 10 . 20 Explosive . | . . . . . Electromagnetic 5 | . . . . 5 Impact . | . . . . . Slashing . | . . . . . Piercing . | . . . . . Highest Corruption 1 | . . . . 1 Average Corruption 1 | . . . . 1 Corruption Purged . | . . . . . Corruption Blocked . | . . . . . Overload Shots . | . . . . . Overflow Damage . | . . . . . Projectiles . | . . . . . Explosions . | . . . . . Melee . | . . . . . Knockbacks . | . . . . . Impact . | . . . . . Kinetic . | . . . . . Secondary . | . . . . . Self-Inflicted Damage . | . . . . . Shots . | . . . . . Rammed . | . . . . . Targets Rammed . | . . . . . Kicked . | . . . . . Crushed . | . . . . . Highest Temperature 72 | . 72 48 . 48 Average Temperature 27 | . 34 26 . 18 Received Heat Transfer 46 | . . 6 . 40 Siege Activations . | . . . . . Robots Corrupted . | . . . . . Combat Hostiles . | . . . . . Parts Fried . | . . . . . Impact Corruptions . | . . . . . Robots Melted . | . . . . . Combat Hostiles . | . . . . . Parts Melted 1 | . 1 . . . Heat Transferred 200 | . 125 25 . 50 Parts Sabotaged . | . . . . . Parts Stolen . | . . . . . Parts Stripped . | . . . . . Power Chain Reactions . | . . . . . Latent Energy Used 35 | . . . . 35 LE Corruption 1 | . . . . 1 Alert | -11 -10 -10 -10 -9 ------- Run | Yrd Mat Min Exi Min Peak Influence 169 | . 93 169 . 78 Initial 36 | . . 36 . . Average 62 | . 31 80 . 44 Maximum Alert Level . | . . . . . Low Security (%) 100 | 100 100 100 . 100 Level 1 . | . . . . . Level 2 . | . . . . . Level 3 . | . . . . . Level 4 . | . . . . . Level 5 . | . . . . . High Security . | . . . . . Max Security . | . . . . . Squads Dispatched 2 | . 1 1 . . Investigation . | . . . . . Extermination . | . . . . . Reinforcement 1 | . 1 . . . Assault 1 | . . 1 . . Garrison . | . . . . . Intercept . | . . . . . Searches Triggered . | . . . . . Construction Impeded . | . . . . . Haulers Reinforced . | . . . . . Active Scanning Responses . | . . . . . Cargo Convoy Interrupts . | . . . . . Stealth | -11 -10 -10 -10 -9 --------- Run | Yrd Mat Min Exi Min Distress Signals 1 | . . . . 1 Communications Jammed . | . . . . . Distress Signals . | . . . . . Times Spotted 23 | . 5 8 . 10 Peak Tracking Total 9 | . 3 3 . 9 Tactical Retreats 2 | . 1 1 . . Traps | -11 -10 -10 -10 -9 ------- Run | Yrd Mat Min Exi Min Traps Triggered 1 | . . . . 1 Indirectly . | . . . . . Trap Hack Attempts . | . . . . . Triggered . | . . . . . Disarmed . | . . . . . Reprogrammed . | . . . . . Reused . | . . . . . Traps Extracted . | . . . . . Installed . | . . . . . Triggered . | . . . . . Objects Rigged 2 | . 2 . . . Machines | -11 -10 -10 -10 -9 ---------- Run | Yrd Mat Min Exi Min Machines Disabled 1 | . . 1 . . Max in Single Turn . | . . . . . Machines Repaired . | . . . . . Machines Dismantled . | . . . . . Machines Sabotaged . | . . . . . Overloaded Fab Kills . | . . . . . Hacking | -11 -10 -10 -10 -9 --------- Run | Yrd Mat Min Exi Min Machines Accessed 8 | . 1 1 5 1 Terminals 1 | . 1 . . . Fabricators . | . . . . . Repair Stations . | . . . . . Recycling Units . | . . . . . Scanalyzers . | . . . . . Garrison Access . | . . . . . Total Hacks 54 | . 2 1 50 1 Successful 53 | . 1 1 50 1 Failed 1 | . 1 . . . Catastrophic . | . . . . . Database Lockouts . | . . . . . Manual 3 | . 2 . 1 . Terminals 2 | . 2 . . . Fabricators . | . . . . . Repair Stations . | . . . . . Recycling Units . | . . . . . Scanalyzers . | . . . . . Garrison Access . | . . . . . Terminal Hacks 52 | . . 1 50 1 Record 49 | . . . 49 . Open Door 2 | . . 1 . 1 Derelict Proto ID Bank 1 | . . . 1 . Fabricator Hacks . | . . . . . Repair Station Hacks . | . . . . . Recycling Unit Hacks . | . . . . . Scanalyzer . | . . . . . Garrison Access Hacks . | . . . . . Unauthorized Hacks 1 | . 1 . . . Terminals 1 | . 1 . . . Detonate 1 | . 1 . . . Fabricators . | . . . . . Repair Stations . | . . . . . Recycling Units . | . . . . . Scanalyzers . | . . . . . Garrison Access . | . . . . . Data Cores Recovered . | . . . . . Used . | . . . . . Hacking Detections 1 | . 1 . . . Full Trace Events . | . . . . . Feedback Events . | . . . . . Feedback Blocked . | . . . . . Robot Schematics Acquired . | . . . . . Robots Built . | . . . . . Authchips . | . . . . . Time . | . . . . . Total Robot Build Rating . | . . . . . Part Schematics Acquired . | . . . . . Parts Built . | . . . . . Authchips . | . . . . . Time . | . . . . . Total Part Build Rating . | . . . . . Parts Repaired . | . . . . . Time . | . . . . . Parts Recycled . | . . . . . Recycled Matter . | . . . . . Retrieved Matter . | . . . . . Retrieved Components . | . . . . . Parts Scanalyzed . | . . . . . Part Schematics Acquired . | . . . . . Parts Damaged . | . . . . . Bothacking | -11 -10 -10 -10 -9 ------------ Run | Yrd Mat Min Exi Min Used RIF Installer . | . . . . . Robots Hacked . | . . . . . Non-combat . | . . . . . Combat . | . . . . . Robot Hacks Applied . | . . . . . Relay Couplers Released . | . . . . . Fabnet Peak Effective % . | . . . . . Robots Rewired . | . . . . . Allies Hacked . | . . . . . Hacks Repelled . | . . . . . Allies | -11 -10 -10 -10 -9 -------- Run | Yrd Mat Min Exi Min Total Allies 4 | . . 4 . . Largest Group 4 | . . 4 2 2 Highest-Rated Group 71 | . . 71 32 32 Highest-Rated Ally 31 | . . 31 16 16 Total Orders . | . . . . . Ally Attacks 22 | . . 17 . 5 Total Damage 280 | . . 229 . 51 Kills 10 | . . 8 . 2 Allies Corrupted . | . . . . . Allies Melted . | . . . . . Intel | -11 -10 -10 -10 -9 ------- Run | Yrd Mat Min Exi Min Robot Analysis Total . | . . . . . Derelict Logs Recovered 4 | . . 3 . 1 Drone Launches . | . . . . . Drone Recoveries . | . . . . . Exploration | -11 -10 -10 -10 -9 ------------- Run | Yrd Mat Min Exi Min Turns Passed 2380 | 55 172 797 1058 298 Spaces Moved 1871 | 41 120 628 875 207 Core 13 | 10 . . . 3 Treads . | . . . . . Legs 1858 | 31 120 628 875 204 Wheels . | . . . . . Hover . | . . . . . Flight . | . . . . . Fastest Speed 50 | 50 120 120 120 120 Average Speed 121 | 102 120 123 120 125 Slowest Speed 500 | 120 120 190 120 500 Overloaded Moves . | . . . . . Propulsion Burnouts . | . . . . . Robots Hopped . | . . . . . Cave-ins Triggered . | . . . . . Exploration Rate (%) 51 | 3 23 94 94 45 Regions Visited 4 Branch Regions 3 Pre-discovered Areas 2 | . . 1 1 . Known Exits Taken . | . . . . . Unknown Exits Taken 4 | 1 1 1 1 . Scrap Searched 2 | . . 1 . 1 Spaces Dug . | . . . . . Terrain Destroyed . | . . . . . Melee . | . . . . . Projectile . | . . . . . AOE . | . . . . . Terrain Rammed . | . . . . . Walls Destroyed . | . . . . . Machines Disabled . | . . . . . Actions | -11 -10 -10 -10 -9 --------- Run | Yrd Mat Min Exi Min Total 1952 | 51 133 643 884 241 Wait 35 | 2 1 1 4 27 Move 1867 | 40 119 627 874 207 Hop . | . . . . . Pick Up 16 | 4 3 5 3 1 Fast Attach 6 | 5 1 . . . Attach 2 | . 1 . . 1 Detach . | . . . . . Swap 5 | . 1 4 . . Drop 8 | . . 4 3 1 Fire 13 | . 7 2 . 4 Melee . | . . . . . Ram . | . . . . . Kick . | . . . . . Crush . | . . . . . Escape Stasis . | . . . . . Rewire . | . . . . . Trap . | . . . . . Miscellaneous . | . . . . . Route ------- -11/Scrapyard -10/Materials (discovered 2 exits: [*Mat] / *Min) -10/Mines (discovered 3 exits: [*Mat x2] / *Exi) -10/Exiles (discovered 2 exits: *Min x2) -9/Mines (discovered 1 exit: [*Mat]) History --------- Turn | Location | Event 11 | -11/Scrapyard | Discovered new exit (range 16) 56 | -11/Scrapyard | Entered Materials 198 | -10/Materials | Discovered new exit (range 16) 202 | -10/Materials | Discovered new exit (range 9) 228 | -10/Materials | Entered Mines 236 | -10/Mines | Met a Derelict bent on vengeance 317 | -10/Mines | Build established: Mutant 326 | -10/Mines | Met a Derelict testing a Signal Generator 333 | -10/Mines | Found Signal Generator 384 | -10/Mines | Assisted by bots powering up and referring to "LRC-V3" 653 | -10/Mines | Discovered new exit (range 10) 663 | -10/Mines | Found the Drone Emporium 670 | -10/Mines | Found Prototype Device 828 | -10/Mines | Discovered new exit (range 6) 889 | -10/Mines | Learned Materials emergency access door positions 908 | -10/Mines | Learned Materials security intel 972 | -10/Mines | Learned location of Mines (-9) 1016 | -10/Mines | Deemed a non-threat by the Exiles lab entrance 1018 | -10/Mines | Discovered new exit (range 5) 1025 | -10/Mines | Entered Exiles 1025 | -10/Exiles | Accompanied by 2 allies 1042 | -10/Exiles | Discovered new exit (range 15) 1078 | -10/Exiles | Met 8R-AWN 1103 | -10/Exiles | Met EX-HEX 1160 | -10/Exiles | Met EX-DEC 1198 | -10/Exiles | Visited The Gauntlet 1465 | -10/Exiles | Discovered new exit (range 12) 1528 | -10/Exiles | Learned location of Zion (-7) 1551 | -10/Exiles | Met EX-BIN 1577 | -10/Exiles | Aligned with FarCom system 1579 | -10/Exiles | Given EX-Vault access code 1651 | -10/Exiles | Opened EX-Vault 1656 | -10/Exiles | Found Prototype Processor 1662 | -10/Exiles | Found Prototype Energy Cannon 1665 | -10/Exiles | Found Prototype Device 1667 | -10/Exiles | Identified Modified TNC 1667 | -10/Exiles | Identified Trap Reconfigurator 1667 | -10/Exiles | Identified Latent Energy Streamer 1694 | -10/Exiles | Warned to stay clear of 0b10 Research branches 2083 | -10/Exiles | Stole three prototypes: Modified TNC, Trap Reconfigurator, Latent Energy Streamer 2083 | -10/Exiles | Entered Mines 2083 | -9/Mines | Accompanied by 2 allies 2118 | -9/Mines | Met a Derelict who couldn't figure out how to use a Trap Extractor 2283 | -9/Mines | Discovered new exit (range 5) 2323 | -9/Mines | Learned Materials emergency access door positions 2339 | -9/Mines | Assembled infested the area 2369 | -9/Mines | Core integrity fell below 50% 2378 | -9/Mines | Core integrity fell below 20% 2381 | -9/Mines | Destroyed by D-53 Grenadier with Mini Grenade Launcher Last Messages --------------- 02376_ Sml. Laser destroyed. 02376_ as-21569 destroyed. 02377_ as-98798 destroyed. 02377_ as-01915 destroyed. 02378_ The unstable cave ceiling collapses. 02378_ Lgt. Nuclear Core destroyed. 02378_ as-85755 destroyed. 02379_ as-69632 destroyed. 02381_ The unstable cave ceiling collapses. 02381_ Latent Energy Streamer destroyed. [Achievement: Back For More] The achievement interface (ESC then open Records) offers an effective way to explore all of your earned achievements as well as seek out new goals for future runs. Important note for Steam players: Cogmind player global achievement rates displayed by Steam are all significantly underreported, in some cases by a huge margin, due to how they are calculated by Valve. Map ----- +----------------------------------------------------+ | | | | | | | | | | | | | | | | | | | | | | | | | | | | | | | | | | | | | | | ??????????????????????## # ##??????????????? | | ??????????????????????# #??????????????? | | ??????????????????##?## ##?????????##### | | ?????????????????## ## # #????????## # | | ????????????????## a d ########## | | ????????????????# a | | ????????? @ d % | | ????? = ## ######## | | ?????? #?# ###??????## | | ?????? ##??# ##?????????## | | ??????? ?????##### ##???????????## | | ??????? ??????????#####?????????????# | | ??????? ?????????????????????????????# | | ???????? ?????????????????????????????# ## | | ???????? ??????????????????????????????## #### | | ????????? ????????????????????????????????###??### | | ?????????????????????????????????????????????????# | | ?????????????????????????????????????????????????? | | ?????????????????????????????????????????????##### | | ???????????????????????????????????????????### # | | ??????????????????????????????????????????## | | ???????????????????????????????????????#### | | ????????????????????????????????######## # | | ???????????????????????????????## # ### | | ???????????????????????????????# = # ##?? | | ??????????????????????????????# [!! # #??? | | ??????????????????????????????## [ !% # ##??? | | ??????????????????????????????# *! #X]# #???? | | ??????????????????????????????## # ##??? | | ???????????????????????????????######## ##?? | | ????????????????????????????????????## #?? | +----------------------------------------------------+ Best States ------------- Heat Dissipation 25 Energy Generation 14 Energy Capacity 160 Matter Stores 500 Matter Capacity 500 Sight Range 16 Terrain Scan Density 10 Evasion (%) 55 Item Schematics ----------------- None Robot Schematics ------------------ None Fabricated ------------ Nothing Alien Tech Used ----------------- None Achievements -------------- Back For More Challenges ------------ None Game ------ Seed SuperdenseSpikedMinigun Manual? 0 Play Time 00:39:29 Cumulative 23.0 hours Start 2024.08.10 @ 11:35:55 End 2024.08.10 @ 12:56:02 Sessions 1 Manual Loads 0 Difficulty Rogue Special Mode None Game No. 51 Rogue 51 Adventurer 0 Explorer 0 Win Type - Total 0 Types 0/0/0/0/0/0/0/0/0 Lore% 11 Gallery% 22 Achievement% 15 Wizard Run 0 Options --------- Layout 1 ASCII 0 Keyboard 0 Movement Numpad Keybinds 0 Fullscreen 1 Font 24/Smallcaps Map View 50x35 Zoom Use 0% Tactical HUD 1 Map Filters NONE Filters NONE Steam 1 RUN: 6c902a6b-d2f9-49bf-82ca-4d97bd2888f9